[Event "69th RUS-ch Women Higher League 2019"]
[Site "Yaroslavl"]
[Date "2019.07.03"]
[Round "6.2"]
[White "Shuvalova, Polina"]
[Black "Shafigullina, Zarina"]
[Result "0-1"]
[ECO "A22"]
[WhiteElo "2418"]
[BlackElo "2240"]
[Annotator "NA"]
[PlyCount "100"]
[EventDate "2019.06.27"]
[EventType "swiss"]
[EventCountry "RUS"]
[SourceTitle "playchess.com"]
[Source "ChessBase"]
[SourceQuality "1"]
[TimeControl "40/5400+30:1800+30"]

1. c4 {[%emt 0:00:00]} e5 {[%emt 0:00:00]} 2. Nc3 {[%emt 0:00:00]} Nf6 {[%emt 0:00:00]} 3. g3 {[%emt 0:00:00]} Bb4 {[%emt 0:03:08]} 4. e4 {[%emt 0:00:00]} O-O {[%emt 0:01:54]} 5. Nge2 {[%emt 0:00:05]} Nc6 {[%emt 0:01:12]} 6. Bg2 {[%emt 0:00:11]} d6 {[%emt 0:02:00]} 7. O-O {[%emt 0:00:18]} a6 {[%emt 0:00:52]} 8. d3 {[%emt 0:00:37]} h6 {[%emt 0:00:43]} 9. h3 {[%emt 0:00:32]} Bc5 {[%emt 0:02:17]} 10. Kh2 {[%emt 0:00:05]} Rb8 {[%emt 0:01:46]} 11. f4 {[%emt 0:03:07]} b5 {[%emt 0:01:19]} 12. f5 {[%emt 0:02:23]} Nd4 {[%emt 0:02:58]} 13. g4 {[%emt 0:04:23]} g5 {[%emt 0:18:05]} 14. Ng1 {[%emt 0:12:40]} Kg7 {[%emt 0:02:00]} 15. b3 {[%emt 0:03:02]} Rh8 {[%emt 0:00:57]} 16. h4 {[%emt 0:09:00]} Ng8 {[%emt 0:13:32]} 17. Nh3 {[%emt 0:04:34]} f6 {[%emt 0:02:27]} 18. Bd2 {[%emt 0:03:45]} Bd7 {[%emt 0:02:46]} 19. a3 {[%emt 0:05:00]} a5 {[%emt 0:07:31]} 20. Nd5 {[%emt 0:07:09]} c6 {[%emt 0:06:08]} 21. b4 {[%emt 0:01:13]} cxd5 {[%emt 0:00:45]} 22. bxc5 {[%emt 0:00:13]} dxc4 {[%emt 0:00:10]} 23. cxd6 {[%emt 0:05:50]} cxd3 {[%emt 0:02:41]} 24. Bc3 {[%emt 0:06:59]} Nc2 {[%emt 0:01:12]} 25. Qxd3 {[%emt 0:02:24]} Nxa1 {[%emt 0:00:09]} 26. Rxa1 {[%emt 0:00:14]} b4 {[%emt 0:09:38]} 27. axb4 {[%emt 0:01:01]} axb4 {[%emt 0:00:05]} 28. Bb2 {[%emt 0:01:20]} Qb6 {[%emt 0:01:46]} 29. h5 {[%emt 0:03:31]} Rd8 {[%emt 0:02:09]} 30. Ra6 {[%emt 0:06:46]} Qb7 {[%emt 0:02:23]} 31. Bf1 {[%emt 0:01:45]} Ra8 {[%emt 0:04:33]} 32. Rxa8 {[%emt 0:02:21]} Qxa8 {[%emt 0:00:04]} 33. Qc4 {[%emt 0:01:33]} Qb7 {[%emt 0:01:16]} 34. Nf2 {[%emt 0:01:20]} Qb6 {[%emt 0:00:14]} 35. Nd3 {[%emt 0:09:02]} Qxd6 {[%emt 0:00:05]} 36. Nc5 {[%emt 0:01:16]} Ne7 {[%emt 0:01:53]} 37. Qxb4 {[%emt 0:00:10]} Qc7 {[%emt 0:02:51]} 38. Na6 {[%emt 0:01:47]} Nc6 {[%emt 0:01:57]} 39. Qd2 {[%emt 0:01:22]} Qa7 {[%emt 0:00:10]} 40. Nc5 {[%emt 0:00:00]} Qxc5 {[%emt 0:00:00]} 41. Qxd7+ {[%emt 0:02:54]} Ne7 {[%emt 0:02:59]} 42. Bc1 {[%emt 0:04:19]} Rf8 {[%emt 0:01:34]} 43. Bd2 {[%emt 0:04:25]} Rf7 {[%emt 0:01:37]} 44. Bg2 {[%emt 0:01:32]} Qd4 {[%emt 0:01:42]} 45. Qxd4 {[%emt 0:01:14]} exd4 {[%emt 0:00:04]} 46. Bb4 {[%emt 0:08:40]} Nc6 {[%emt 0:00:22]} 47. Bc5 {[%emt 0:00:21]} d3 {[%emt 0:00:49]} 48. Bf3 {[%emt 0:02:29]} Ne5 {[%emt 0:00:21]} 49. Bd1 {[%emt 0:00:08]} Rc7 {[%emt 0:00:27]} 50. Be3 {[%emt 0:00:10]} d2 {[%emt 0:01:33]} 0-1

[Event "69th RUS-ch Women Higher League 2019"]
[Site "Yaroslavl"]
[Date "2019.07.03"]
[Round "6.3"]
[White "Charochkina, Daria"]
[Black "Protopopova, Anastasiya"]
[Result "1-0"]
[ECO "A01"]
[WhiteElo "2338"]
[BlackElo "2272"]
[Annotator "NA"]
[PlyCount "137"]
[EventDate "2019.06.27"]
[EventType "swiss"]
[EventCountry "RUS"]
[SourceTitle "playchess.com"]
[Source "ChessBase"]
[SourceQuality "1"]
[TimeControl "40/5400+30:1800+30"]

1. b3 {[%emt 0:00:00]} e5 {[%emt 0:04:48]} 2. Bb2 {[%emt 0:00:00]} Nc6 {[%emt 0:00:25]} 3. e3 {[%emt 0:00:00]} d6 {[%emt 0:02:20]} 4. d4 {[%emt 0:00:50]} Bd7 {[%emt 0:14:21]} 5. Nc3 {[%emt 0:10:22]} g6 {[%emt 0:02:29]} 6. dxe5 {[%emt 0:04:40]} dxe5 {[%emt 0:00:29]} 7. Qe2 {[%emt 0:01:44]} Bg7 {[%emt 0:10:24]} 8. O-O-O {[%emt 0:00:23]} Nge7 {[%emt 0:00:04]} 9. g4 {[%emt 0:16:52]} Qc8 {[%emt 0:03:40]} 10. g5 {[%emt 0:02:45]} h6 11. gxh6 {[%emt 0:01:12]} Rxh6 {[%emt 0:10:05]} 12. Ne4 {[%emt 0:13:49]} Rh4 {[%emt 0:06:22]} 13. f3 {[%emt 0:07:05]} Bf5 {[%emt 0:04:35]} 14. Qf2 {[%emt 0:00:12]} Rh8 {[%emt 0:04:42]} 15. Ne2 {[%emt 0:07:19]} Bxe4 {[%emt 0:17:00]} 16. fxe4 {[%emt 0:00:04]} Qg4 {[%emt 0:03:05]} 17. Nf4 {[%emt 0:05:59]} Qh4 {[%emt 0:04:02]} 18. Qf3 {[%emt 0:01:20]} Nd4 {[%emt 0:02:58]} 19. Qg2 {[%emt 0:07:37]} exf4 {[%emt 0:00:19]} 20. exd4 {[%emt 0:00:09]} O-O-O {[%emt 0:01:04]} 21. Bc4 {[%emt 0:00:11]} Nc6 {[%emt 0:01:09]} 22. e5 {[%emt 0:04:24]} f3 {[%emt 0:01:47]} 23. Qxf3 {[%emt 0:00:47]} Nxd4 {[%emt 0:00:10]} 24. Qxf7 {[%emt 0:02:10]} Bxe5 {[%emt 0:01:11]} 25. Qxg6 {[%emt 0:00:40]} Qf2 {[%emt 0:03:13]} 26. Kb1 {[%emt 0:04:35]} Kb8 {[%emt 0:01:26]} 27. Qe4 {[%emt 0:01:18]} Bg7 {[%emt 0:00:51]} 28. Rhf1 {[%emt 0:02:53]} Qh4 {[%emt 0:00:28]} 29. Qxh4 {[%emt 0:01:32]} Rxh4 {[%emt 0:00:01]} 30. Rf7 {[%emt 0:00:31]} Be5 {[%emt 0:00:51]} 31. c3 {[%emt 0:01:28]} Nc6 {[%emt 0:00:01]} 32. Rxd8+ {[%emt 0:00:04]} Nxd8 {[%emt 0:00:03]} 33. Rf8 {[%emt 0:00:04]} Rh8 {[%emt 0:00:12]} 34. Rxh8 {[%emt 0:02:32]} Bxh8 {[%emt 0:00:01]} 35. Kc2 {[%emt 0:00:11]} Nc6 {[%emt 0:01:38]} 36. Be6 {[%emt 0:00:31]} Ne5 {[%emt 0:00:49]} 37. c4 {[%emt 0:01:24]} c5 {[%emt 0:00:09]} 38. Bd5 {[%emt 0:00:31]} Kc7 {[%emt 0:00:41]} 39. Bc1 {[%emt 0:00:21]} b6 {[%emt 0:00:32]} 40. Bf4 {[%emt 0:00:00]} Kd7 {[%emt 0:00:00]} 41. Kd2 {[%emt 0:04:07]} Ke7 {[%emt 0:07:03]} 42. h3 {[%emt 0:02:13]} Kd7 {[%emt 0:11:53]} 43. Ke3 {[%emt 0:00:42]} Ng6 {[%emt 0:01:32]} 44. Bg5 {[%emt 0:01:29]} a6 {[%emt 0:04:30]} 45. Ke4 {[%emt 0:01:44]} Ne7 {[%emt 0:02:08]} 46. Bb7 {[%emt 0:04:58]} a5 {[%emt 0:00:05]} 47. h4 {[%emt 0:00:14]} Bc3 {[%emt 0:00:58]} 48. h5 {[%emt 0:01:37]} Bb2 {[%emt 0:00:06]} 49. Bf4 {[%emt 0:00:44]} Ng8 {[%emt 0:01:04]} 50. Kf5 {[%emt 0:02:35]} Ne7+ {[%emt 0:00:48]} 51. Kg5 {[%emt 0:00:03]} Bg7 {[%emt 0:02:03]} 52. Be4 {[%emt 0:01:56]} Kd8 {[%emt 0:01:10]} 53. Bf5 {[%emt 0:02:11]} Bh8 {[%emt 0:00:02]} 54. Bg4 {[%emt 0:00:13]} Bg7 {[%emt 0:00:19]} 55. Be6 {[%emt 0:00:15]} Bc3 {[%emt 0:03:06]} 56. Kh6 {[%emt 0:01:29]} Nc6 {[%emt 0:01:56]} 57. Kg6 {[%emt 0:02:35]} Ke7 {[%emt 0:00:24]} 58. Bd5 {[%emt 0:00:26]} Ne5+ {[%emt 0:00:14]} 59. Kf5 {[%emt 0:00:15]} Nd7 {[%emt 0:00:59]} 60. Bc7 {[%emt 0:01:56]} Nf6 {[%emt 0:00:34]} 61. h6 {[%emt 0:00:32]} Nd7 {[%emt 0:00:18]} 62. Bc6 {[%emt 0:07:34]} Nf8 {[%emt 0:00:15]} 63. Bd5 {[%emt 0:01:01]} Nd7 {[%emt 0:00:20]} 64. Bg8 {[%emt 0:00:17]} Bb2 {[%emt 0:00:58]} 65. h7 {[%emt 0:01:19]} Bh8 {[%emt 0:00:39]} 66. Bf4 {[%emt 0:00:31]} Nf6 {[%emt 0:00:37]} 67. Bg5 {[%emt 0:00:29]} Bg7 {[%emt 0:00:08]} 68. Kg6 {[%emt 0:00:41]} Bh8 {[%emt 0:00:27]} 69. a4 {[%emt 0:00:21]} 1-0

[Event "69th RUS-ch Women Higher League 2019"]
[Site "Yaroslavl"]
[Date "2019.07.03"]
[Round "6.4"]
[White "Galliamova, Alisa"]
[Black "Potapova, Margarita"]
[Result "0-1"]
[ECO "E10"]
[WhiteElo "2444"]
[BlackElo "2256"]
[Annotator "NA"]
[PlyCount "156"]
[EventDate "2019.06.27"]
[EventType "swiss"]
[EventCountry "RUS"]
[SourceTitle "playchess.com"]
[Source "ChessBase"]
[SourceQuality "1"]
[TimeControl "40/5400+30:1800+30"]

1. d4 {[%emt 0:00:00]} Nf6 {[%emt 0:00:00]} 2. Nf3 {[%emt 0:00:00]} e6 {[%emt 0:00:00]} 3. c4 {[%emt 0:00:00]} a6 {[%emt 0:00:01]} 4. g3 {[%emt 0:10:52]} b5 {[%emt 0:00:06]} 5. Qb3 {[%emt 0:01:28]} bxc4 {[%emt 0:04:00]} 6. Qxc4 {[%emt 0:00:07]} d5 {[%emt 0:02:07]} 7. Qc2 {[%emt 0:05:04]} Nbd7 {[%emt 0:02:11]} 8. Bg2 {[%emt 0:01:39]} Bb7 {[%emt 0:04:46]} 9. O-O {[%emt 0:03:15]} c5 {[%emt 0:00:37]} 10. Nc3 {[%emt 0:03:50]} Rc8 {[%emt 0:04:49]} 11. Bg5 {[%emt 0:10:48]} h6 {[%emt 0:07:35]} 12. Bxf6 {[%emt 0:01:08]} Qxf6 {[%emt 0:01:07]} 13. e3 {[%emt 0:07:31]} Bd6 {[%emt 0:02:34]} 14. Qa4 {[%emt 0:03:25]} cxd4 {[%emt 0:06:42]} 15. exd4 {[%emt 0:11:27]} Rc4 {[%emt 0:01:40]} 16. Qd1 {[%emt 0:03:02]} O-O {[%emt 0:00:33]} 17. Qd3 {[%emt 0:00:31]} Rfc8 {[%emt 0:02:12]} 18. Rfc1 {[%emt 0:04:45]} Nf8 {[%emt 0:14:49]} 19. Bf1 {[%emt 0:05:46]} Ng6 {[%emt 0:04:30]} 20. Qe3 {[%emt 0:04:22]} R4c7 {[%emt 0:00:59]} 21. Bd3 {[%emt 0:09:12]} Ne7 {[%emt 0:02:45]} 22. Kg2 {[%emt 0:02:07]} Nf5 {[%emt 0:03:01]} 23. Qd2 {[%emt 0:03:59]} e5 {[%emt 0:13:00]} 24. Bxf5 {[%emt 0:03:42]} Qxf5 {[%emt 0:00:24]} 25. Nh4 {[%emt 0:02:19]} Qf6 {[%emt 0:03:31]} 26. Ne2 {[%emt 0:00:25]} Rxc1 {[%emt 0:09:37]} 27. Rxc1 {[%emt 0:00:03]} Re8 {[%emt 0:01:25]} 28. Nf3 {[%emt 0:01:14]} e4 {[%emt 0:00:58]} 29. Nfg1 {[%emt 0:00:22]} Bc8 {[%emt 0:01:58]} 30. Qe3 {[%emt 0:00:43]} Bd7 {[%emt 0:01:30]} 31. b3 {[%emt 0:01:10]} g5 {[%emt 0:01:08]} 32. Rc2 {[%emt 0:00:59]} Kg7 {[%emt 0:00:59]} 33. Nc3 {[%emt 0:00:12]} Qe6 {[%emt 0:00:30]} 34. Na4 {[%emt 0:00:39]} Bxa4 {[%emt 0:00:29]} 35. bxa4 {[%emt 0:00:06]} f5 {[%emt 0:01:20]} 36. Qb3 {[%emt 0:00:25]} f4 {[%emt 0:00:43]} 37. Qb7+ {[%emt 0:00:40]} Re7 {[%emt 0:01:02]} 38. Qxa6 {[%emt 0:00:05]} f3+ {[%emt 0:00:31]} 39. Kh1 {[%emt 0:00:27]} e3 {[%emt 0:00:21]} 40. fxe3 {[%emt 0:00:00]} g4 {[%emt 0:00:00]} 41. Rf2 {[%emt 0:07:23]} Bb4 {[%emt 0:12:37]} 42. Qxe6 {[%emt 0:03:42]} Rxe6 {[%emt 0:00:04]} 43. Nxf3 {[%emt 0:00:10]} gxf3 {[%emt 0:00:23]} 44. Rxf3 {[%emt 0:00:06]} Kg6 {[%emt 0:01:49]} 45. g4 {[%emt 0:12:11]} Bd2 {[%emt 0:01:05]} 46. Rf5 {[%emt 0:01:58]} Rxe3 {[%emt 0:04:05]} 47. Rxd5 {[%emt 0:00:20]} Ra3 {[%emt 0:00:06]} 48. Kg2 {[%emt 0:03:15]} Rxa4 {[%emt 0:00:33]} 49. h4 {[%emt 0:01:26]} Rxa2 {[%emt 0:00:13]} 50. Rd6+ {[%emt 0:01:13]} Kf7 {[%emt 0:00:11]} 51. Kf3 {[%emt 0:00:29]} Ra3+ {[%emt 0:00:54]} 52. Ke2 {[%emt 0:03:02]} Bf4 {[%emt 0:00:09]} 53. Rd5 {[%emt 0:00:23]} Bg3 {[%emt 0:03:01]} 54. Rf5+ {[%emt 0:02:19]} Kg7 {[%emt 0:00:04]} 55. g5 {[%emt 0:01:07]} h5 {[%emt 0:00:07]} 56. Rf6 {[%emt 0:00:11]} Bxh4 {[%emt 0:02:38]} 57. Rh6 {[%emt 0:00:09]} Bxg5 {[%emt 0:01:07]} 58. Rxh5 {[%emt 0:00:04]} Kg6 {[%emt 0:00:11]} 59. Rh8 {[%emt 0:00:12]} Bf6 {[%emt 0:00:17]} 60. Re8 {[%emt 0:00:30]} Bxd4 {[%emt 0:00:10]} 61. Re4 {[%emt 0:00:15]} Bf6 {[%emt 0:00:47]} 62. Re3 {[%emt 0:00:23]} Ra4 {[%emt 0:00:12]} 63. Rf3 {[%emt 0:00:53]} Be5 {[%emt 0:00:52]} 64. Rb3 {[%emt 0:00:54]} Kf5 {[%emt 0:00:16]} 65. Rd3 {[%emt 0:01:16]} Bd4 {[%emt 0:00:59]} 66. Kf3 {[%emt 0:00:12]} Ke5 {[%emt 0:00:42]} 67. Rb3 {[%emt 0:00:18]} Ra5 {[%emt 0:00:10]} 68. Rd3 {[%emt 0:00:14]} Ra8 {[%emt 0:00:06]} 69. Kg2 {[%emt 0:01:26]} Ke4 {[%emt 0:00:28]} 70. Rb3 {[%emt 0:00:33]} Ra2+ {[%emt 0:00:33]} 71. Kg3 {[%emt 0:00:25]} Be5+ {[%emt 0:00:07]} 72. Kg4 {[%emt 0:00:18]} Rg2+ {[%emt 0:00:12]} 73. Kh3 {[%emt 0:00:23]} Rg7 {[%emt 0:00:39]} 74. Rb4+ {[%emt 0:00:58]} Kf5 {[%emt 0:02:02]} 75. Rb5 {[%emt 0:00:26]} Rg3+ {[%emt 0:00:20]} 76. Kh4 {[%emt 0:00:03]} Ra3 {[%emt 0:01:06]} 77. Rd5 {[%emt 0:00:47]} Ra8 {[%emt 0:00:43]} 78. Kh3 {[%emt 0:00:14]} Ra2 {[%emt 0:00:05]} 0-1

[Event "69th RUS-ch Women Higher League 2019"]
[Site "Yaroslavl"]
[Date "2019.07.03"]
[Round "6.5"]
[White "Bodnaruk, Anastasia"]
[Black "Goltseva, Ekaterina"]
[Result "0-1"]
[ECO "C18"]
[WhiteElo "2440"]
[BlackElo "2304"]
[Annotator "NA"]
[PlyCount "70"]
[EventDate "2019.06.27"]
[EventType "swiss"]
[EventCountry "RUS"]
[SourceTitle "playchess.com"]
[Source "ChessBase"]
[SourceQuality "1"]
[TimeControl "40/5400+30:1800+30"]

1. e4 {[%emt 0:00:00]} e6 {[%emt 0:00:00]} 2. d4 {[%emt 0:00:00]} d5 {[%emt 0:00:00]} 3. Nc3 {[%emt 0:00:00]} Bb4 {[%emt 0:00:02]} 4. e5 {[%emt 0:00:00]} c5 {[%emt 0:00:07]} 5. a3 {[%emt 0:00:23]} Bxc3+ {[%emt 0:00:11]} 6. bxc3 {[%emt 0:00:04]} Qa5 {[%emt 0:00:20]} 7. Bd2 {[%emt 0:00:56]} Qa4 {[%emt 0:00:10]} 8. Qg4 {[%emt 0:00:43]} Kf8 {[%emt 0:00:22]} 9. Qd1 {[%emt 0:02:30]} Ne7 {[%emt 0:01:48]} 10. Nf3 {[%emt 0:02:30]} b6 {[%emt 0:01:27]} 11. c4 {[%emt 0:14:34]} dxc4 {[%emt 0:01:46]} 12. dxc5 {[%emt 0:01:07]} bxc5 {[%emt 0:12:28]} 13. Be3 {[%emt 0:13:45]} Nd7 {[%emt 0:03:31]} 14. Qd6 {[%emt 0:28:08]} Bb7 {[%emt 0:02:14]} 15. Rd1 {[%emt 0:11:58]} Bd5 {[%emt 0:03:50]} 16. Rxd5 {[%emt 0:04:53]} exd5 {[%emt 0:02:50]} 17. e6 {[%emt 0:00:18]} fxe6 {[%emt 0:19:52]} 18. Ng5 {[%emt 0:00:35]} Qc6 {[%emt 0:01:40]} 19. Nxe6+ {[%emt 0:00:19]} Kf7 {[%emt 0:00:21]} 20. Ng5+ {[%emt 0:01:36]} Ke8 {[%emt 0:00:41]} 21. Qg3 {[%emt 0:02:41]} h6 {[%emt 0:09:05]} 22. Qh3 {[%emt 0:01:10]} Rg8 {[%emt 0:00:48]} 23. Ne6 {[%emt 0:01:57]} Kf7 {[%emt 0:02:38]} 24. Nf4 {[%emt 0:02:40]} g5 {[%emt 0:01:21]} 25. Nh5 {[%emt 0:02:28]} Qe6 {[%emt 0:03:11]} 26. g4 {[%emt 0:01:34]} Rab8 {[%emt 0:06:44]} 27. Be2 {[%emt 0:03:31]} Rb1+ {[%emt 0:01:47]} 28. Bd1 {[%emt 0:00:07]} d4 {[%emt 0:01:43]} 29. O-O {[%emt 0:00:16]} dxe3 {[%emt 0:02:11]} 30. fxe3+ {[%emt 0:00:03]} Ke8 {[%emt 0:00:38]} 31. Qf3 {[%emt 0:00:48]} Qd5 {[%emt 0:00:59]} 32. Qe2 {[%emt 0:01:56]} Rf8 {[%emt 0:00:57]} 33. Re1 {[%emt 0:00:39]} Ne5 {[%emt 0:02:48]} 34. e4 {[%emt 0:00:20]} Qd4+ {[%emt 0:00:12]} 35. Kg2 {[%emt 0:00:13]} c3 {[%emt 0:00:57]} 0-1

[Event "69th RUS-ch Women Higher League 2019"]
[Site "Yaroslavl"]
[Date "2019.07.03"]
[Round "6.6"]
[White "Borisova, Ekaterina"]
[Black "Gritsayeva, Oksana"]
[Result "1-0"]
[ECO "A40"]
[WhiteElo "2267"]
[BlackElo "2381"]
[Annotator "NA"]
[PlyCount "103"]
[EventDate "2019.06.27"]
[EventType "swiss"]
[EventCountry "RUS"]
[SourceTitle "playchess.com"]
[Source "ChessBase"]
[SourceQuality "1"]
[TimeControl "40/5400+30:1800+30"]

1. d4 {[%emt 0:00:00]} Nf6 {[%emt 0:00:00]} 2. c4 {[%emt 0:00:00]} e6 {[%emt 0:00:00]} 3. g3 {[%emt 0:00:00]} c5 {[%emt 0:00:14]} 4. d5 {[%emt 0:00:00]} exd5 {[%emt 0:00:05]} 5. cxd5 {[%emt 0:00:00]} b5 {[%emt 0:00:20]} 6. e4 {[%emt 0:00:00]} Nxe4 {[%emt 0:01:06]} 7. Bg2 {[%emt 0:00:00]} Nd6 {[%emt 0:01:47]} 8. Nf3 {[%emt 0:00:01]} Be7 {[%emt 0:00:59]} 9. O-O {[%emt 0:00:04]} O-O {[%emt 0:00:55]} 10. Bf4 {[%emt 0:00:03]} Bb7 {[%emt 0:15:38]} 11. Re1 {[%emt 0:00:54]} Nc8 {[%emt 0:11:48]} 12. Nc3 {[%emt 0:13:27]} d6 {[%emt 0:05:23]} 13. Nxb5 {[%emt 0:00:51]} Nd7 {[%emt 0:02:31]} 14. Nd2 {[%emt 0:07:24]} Ndb6 {[%emt 0:06:44]} 15. Nc3 {[%emt 0:08:48]} Bg5 {[%emt 0:04:26]} 16. Bxg5 {[%emt 0:18:21]} Qxg5 {[%emt 0:00:16]} 17. h4 {[%emt 0:00:05]} Qd8 {[%emt 0:11:06]} 18. Qe2 {[%emt 0:01:17]} Nd7 {[%emt 0:02:08]} 19. Nf1 {[%emt 0:14:29]} Nf6 {[%emt 0:07:13]} 20. Ne3 {[%emt 0:00:54]} Nb6 {[%emt 0:00:54]} 21. g4 {[%emt 0:08:05]} Re8 {[%emt 0:03:22]} 22. Rad1 {[%emt 0:01:23]} Bc8 {[%emt 0:03:46]} 23. Qf3 {[%emt 0:03:29]} Nbd7 {[%emt 0:05:26]} 24. Nc4 {[%emt 0:05:08]} Rxe1+ {[%emt 0:01:18]} 25. Rxe1 {[%emt 0:00:08]} Nb6 {[%emt 0:00:49]} 26. Ne3 {[%emt 0:01:34]} Nfd7 {[%emt 0:05:49]} 27. Qg3 {[%emt 0:01:42]} Ne5 {[%emt 0:01:19]} 28. f4 {[%emt 0:02:43]} Nec4 {[%emt 0:00:58]} 29. Ned1 {[%emt 0:05:18]} Bd7 {[%emt 0:01:09]} 30. b3 {[%emt 0:00:18]} Na3 {[%emt 0:01:07]} 31. f5 {[%emt 0:02:27]} Nc8 {[%emt 0:01:52]} 32. Ne3 {[%emt 0:02:17]} Nb5 {[%emt 0:00:34]} 33. Nxb5 {[%emt 0:00:43]} Bxb5 {[%emt 0:00:05]} 34. a4 {[%emt 0:00:07]} Ba6 {[%emt 0:01:08]} 35. g5 {[%emt 0:00:27]} Qf8 {[%emt 0:02:19]} 36. Ng4 {[%emt 0:01:05]} Ne7 {[%emt 0:01:54]} 37. Qxd6 {[%emt 0:01:40]} Nxf5 {[%emt 0:00:45]} 38. Qxa6 {[%emt 0:00:05]} Nxh4 {[%emt 0:00:11]} 39. d6 {[%emt 0:02:04]} Rd8 {[%emt 0:01:22]} 40. Rd1 {[%emt 0:00:00]} Qe8 {[%emt 0:00:00]} 41. Qd3 {[%emt 0:10:47]} h5 {[%emt 0:05:53]} 42. gxh6 {[%emt 0:02:43]} Qe6 {[%emt 0:01:01]} 43. Ne3 {[%emt 0:02:50]} Qxh6 {[%emt 0:01:28]} 44. d7 {[%emt 0:03:12]} Qg5 {[%emt 0:03:02]} 45. Qe4 {[%emt 0:00:42]} f5 {[%emt 0:01:01]} 46. Qd5+ {[%emt 0:06:13]} Kh8 {[%emt 0:00:58]} 47. Kf2 {[%emt 0:00:09]} Qf4+ {[%emt 0:02:48]} 48. Ke2 {[%emt 0:00:08]} g6 {[%emt 0:08:59]} 49. Qd6 {[%emt 0:02:52]} Qxd6 {[%emt 0:01:17]} 50. Rxd6 {[%emt 0:00:09]} f4 {[%emt 0:01:13]} 51. Bc6 {[%emt 0:00:59]} Kg7 {[%emt 0:02:56]} 52. Re6 {[%emt 0:01:14]} 1-0

[Event "69th RUS-ch Women Higher League 2019"]
[Site "Yaroslavl"]
[Date "2019.07.03"]
[Round "6.7"]
[White "Guseva, Marina"]
[Black "Dordzhieva, Dinara"]
[Result "1/2-1/2"]
[ECO "E81"]
[WhiteElo "2379"]
[BlackElo "2306"]
[Annotator "NA RC"]
[PlyCount "127"]
[EventDate "2019.06.27"]
[EventType "swiss"]
[EventCountry "RUS"]
[SourceTitle "playchess.com"]
[Source "ChessBase"]
[SourceQuality "1"]
[TimeControl "40/5400+30:1800+30"]

1. d4 {[%emt 0:00:00]} Nf6 {[%emt 0:00:24]} 2. c4 {[%emt 0:00:00]} g6 {[%emt 0:00:04]} 3. Nc3 {[%emt 0:00:00]} Bg7 {[%emt 0:00:04]} 4. e4 {[%emt 0:00:04]} d6 {[%emt 0:00:05]} 5. f3 {[%emt 0:00:04]} O-O {[%emt 0:00:06]} 6. Nge2 {[%emt 0:00:04]} c5 {[%emt 0:00:04]} 7. d5 {[%emt 0:00:08]} Nbd7 {[%emt 0:00:27]} 8. Ng3 {[%emt 0:01:12]} h5 {[%emt 0:04:05]} 9. Be2 {[%emt 0:00:11]} Ne5 {[%emt 0:03:57]} 10. O-O {[%emt 0:00:28]} e6 {[%emt 0:00:47]} 11. h3 {[%emt 0:06:59]} exd5 {[%emt 0:00:33]} 12. cxd5 {[%emt 0:00:05]} a6 {[%emt 0:01:25]} 13. a4 {[%emt 0:08:27]} h4 {[%emt 0:09:14]} 14. Nh1 {[%emt 0:00:05]} Nh7 {[%emt 0:00:04]} 15. f4 {[%emt 0:01:32]} Nd7 {[%emt 0:03:12]} 16. a5 {[%emt 0:24:21]} f5 {[%emt 0:09:12]} 17. exf5 {[%emt 0:00:10]} gxf5 {[%emt 0:07:55]} 18. g4 {[%emt 0:09:38]} hxg3 {[%emt 0:07:52]} 19. Nxg3 {[%emt 0:00:04]} Qh4 {[%emt 0:01:57]} 20. Kh2 {[%emt 0:00:05]} Ndf6 {[%emt 0:02:34]} 21. Qd3 {[%emt 0:00:07]} Ne4 {[%emt 0:07:42]} 22. Ngxe4 {[%emt 0:13:54]} fxe4 {[%emt 0:00:06]} 23. Nxe4 {[%emt 0:00:10]} Bf5 {[%emt 0:03:27]} 24. Qg3 {[%emt 0:00:10]} Qe7 {[%emt 0:00:28]} 25. Nc3 {[%emt 0:00:04]} Kh8 {[%emt 0:02:17]} 26. Bd3 {[%emt 0:06:46]} Bd4 {[%emt 0:06:14]} 27. Bd2 {[%emt 0:02:15]} Rg8 {[%emt 0:11:36]} 28. Qf3 {[%emt 0:00:05]} Qf7 {[%emt 0:06:33]} 29. Rae1 {[%emt 0:08:08]} Rg7 {[%emt 0:00:10]} 30. Re2 {[%emt 0:02:26]} Rag8 {[%emt 0:00:20]} 31. Bxf5 {[%emt 0:03:14]} Qxf5 {[%emt 0:00:06]} 32. Be1 {[%emt 0:05:04]} Nf6 {[%emt 0:02:46]} 33. Bh4 {[%emt 0:02:09]} Nh5 {[%emt 0:03:01]} 34. Ne4 {[%emt 0:04:59]} Nxf4 {[%emt 0:05:13]} 35. Nxd6 {[%emt 0:01:13]} Qxd5 {[%emt 0:01:15]} 36. Qxd5 {[%emt 0:00:32]} Nxd5 {[%emt 0:00:03]} 37. Rf5 {[%emt 0:00:59]} Ne3 {[%emt 0:01:04]} 38. Rh5+ {[%emt 0:01:13]} Rh7 {[%emt 0:00:03]} 39. Rxh7+ {[%emt 0:00:16]} Kxh7 {[%emt 0:00:03]} 40. Bf2 {[%emt 0:00:00]} Nf1+ {[%emt 0:00:00]} 41. Kh1 {[%emt 0:00:47]} Ng3+ {[%emt 0:10:42]} 42. Bxg3 {[%emt 0:00:04]} Rxg3 {[%emt 0:00:02]} 43. Re7+ {[%emt 0:07:51]} Kg6 {[%emt 0:00:30]} 44. Rxb7 {[%emt 0:00:08]} Rg1+ {[%emt 0:05:06]} 45. Kh2 {[%emt 0:00:03]} Rc1 {[%emt 0:00:03]} 46. Rb6 {[%emt 0:03:25]} Be5+ {[%emt 0:05:55]} 47. Kg2 {[%emt 0:00:07]} Rc2+ {[%emt 0:00:02]} 48. Kf3 {[%emt 0:00:12]} Bxd6 {[%emt 0:02:23]} 49. Rxd6+ {[%emt 0:00:04]} Kf5 {[%emt 0:00:04]} 50. Rb6 {[%emt 0:06:56]} c4 {[%emt 0:04:45]} 51. Ke3 {[%emt 0:04:02]} Ke5 {[%emt 0:00:36]} 52. h4 {[%emt 0:01:40]} Rh2 {[%emt 0:00:43]} 53. Rh6 {[%emt 0:01:26]} Rh3+ {[%emt 0:03:25]} 54. Kd2 {[%emt 0:00:04]} Kd4 {[%emt 0:00:30]} 55. Rxa6 {[%emt 0:04:50]} Rxh4 {[%emt 0:00:59]} 56. Rc6 {[%emt 0:00:48]} Rh2+ {[%emt 0:00:24]} 57. Kc1 {[%emt 0:00:04]} Rh1+ {[%emt 0:01:25]} 58. Kc2 {[%emt 0:00:03]} Ra1 {[%emt 0:00:19]} 59. Ra6 {[%emt 0:04:41]} Kc5 {[%emt 0:00:20]} 60. Ra8 {[%emt 0:00:04]} Kb5 {[%emt 0:00:45]} 61. Kc3 {[%emt 0:00:22]} Rc1+ {[%emt 0:00:31]} 62. Kd4 {[%emt 0:00:09]} Rd1+ {[%emt 0:00:06]} 63. Ke5 {[%emt 0:03:39]} Kc5 {[%emt 0:01:09]} 64. Rc8+ {[%emt 0:01:11]} 1/2-1/2